[Event "Titled Tuesday Blitz November 08 Late 2022"]
[White "Ladan, Nicholas"]
[Black "Gritsenko, Nikolai"]
[WhiteFideId "30918855"]
[BlackFideId "14112493"]
[WhiteElo "2167"]
[BlackElo "2389"]
[Result "1-0"]
[Round "08"]
[TimeControl "180+1"]
[Date "2022.11.09"]
[WhiteClock "0:00:13"]
[BlackClock "0:00:18"]

1. b3 {[%clk 0:03:00]}  d5 {[%clk 0:02:58]} 2. Bb2 {[%clk 0:03:01]}  c6 {[%clk 0:02:59]} 3. e4 {[%clk 0:02:58]}  dxe4 {[%clk 0:02:58]} 4. Nc3 {[%clk 0:02:57]}  Nf6 {[%clk 0:02:57]} 5. Nge2 {[%clk 0:02:55]}  Bf5 {[%clk 0:02:53]} 6. Ng3 {[%clk 0:02:55]}  Bg6 {[%clk 0:02:53]} 7. Qe2 {[%clk 0:02:54]}  Nbd7 {[%clk 0:02:49]} 8. Ngxe4 {[%clk 0:02:51]}  e6 {[%clk 0:02:48]} 9. O-O-O {[%clk 0:02:46]}  Qa5 {[%clk 0:02:46]} 10. g4 {[%clk 0:02:40]}  Ba3 {[%clk 0:02:43]} 11. f4 {[%clk 0:02:27]}  O-O-O {[%clk 0:02:29]} 12. Bg2 {[%clk 0:02:14]}  Nd5 {[%clk 0:02:19]} 13. Rhf1 {[%clk 0:02:00]}  Rhe8 {[%clk 0:02:06]} 14. Kb1 {[%clk 0:01:58]}  f6 {[%clk 0:01:57]} 15. Qf2 {[%clk 0:01:33]}  N7b6 {[%clk 0:01:42]} 16. f5 {[%clk 0:01:20]}  Bf7 {[%clk 0:01:37]} 17. g5 {[%clk 0:01:17]}  exf5 {[%clk 0:00:45]} 18. Qxf5+ {[%clk 0:01:16]}  Be6 {[%clk 0:00:44]} 19. Qxh7 {[%clk 0:00:59]}  Nc4 {[%clk 0:00:43]} 20. Ba1 {[%clk 0:00:53]}  Bb4 {[%clk 0:00:31]} 21. bxc4 {[%clk 0:00:46]}  Nb6 {[%clk 0:00:31]} 22. Bh3 {[%clk 0:00:33]}  Nxc4 {[%clk 0:00:24]} 23. Bxe6+ {[%clk 0:00:29]}  Rxe6 {[%clk 0:00:24]} 24. Qf5 {[%clk 0:00:30]}  Qxf5 {[%clk 0:00:23]} 25. Rxf5 {[%clk 0:00:29]}  Bxc3 {[%clk 0:00:23]} 26. Nxc3 {[%clk 0:00:23]}  b5 {[%clk 0:00:19]} 27. Kc1 {[%clk 0:00:18]}  b4 {[%clk 0:00:18]} 28. Na4 {[%clk 0:00:14]}  Rd5 {[%clk 0:00:17]} 29. Rxd5 {[%clk 0:00:13]}  cxd5 {[%clk 0:00:17]} 30. gxf6 {[%clk 0:00:14]}  gxf6 {[%clk 0:00:17]} 31. Nc5 {[%clk 0:00:13]}  Re2 {[%clk 0:00:17]} 32. Nd3 {[%clk 0:00:12]}  a5 {[%clk 0:00:15]} 33. Bxf6 {[%clk 0:00:12]}  Rxh2 {[%clk 0:00:14]} 34. Bb2 {[%clk 0:00:11]}  Kd7 {[%clk 0:00:13]} 35. c3 {[%clk 0:00:08]}  bxc3 {[%clk 0:00:11]} 36. Bxc3 {[%clk 0:00:09]}  Kc7 {[%clk 0:00:11]} 37. Nb2 {[%clk 0:00:09]}  Nd6 {[%clk 0:00:07]} 38. Kc2 {[%clk 0:00:08]}  Kc6 {[%clk 0:00:07]} 39. Rf1 {[%clk 0:00:07]}  Kb5 {[%clk 0:00:06]} 40. Rf6 {[%clk 0:00:05]}  Ne4 {[%clk 0:00:06]} 41. Rf5 {[%clk 0:00:05]}  Kc6 {[%clk 0:00:05]} 42. Nd3 {[%clk 0:00:05]}  d4 {[%clk 0:00:05]} 43. Ne5+ {[%clk 0:00:02]}  Kd5 {[%clk 0:00:03]} 44. Nf3+ {[%clk 0:00:02]}  Ke6 {[%clk 0:00:04]} 45. Nxh2 {[%clk 0:00:03]}  dxc3 {[%clk 0:00:04]} 46. d3 {[%clk 0:00:03]}  Kxf5 {[%clk 0:00:03]} 47. dxe4+ {[%clk 0:00:04]}  Kxe4 {[%clk 0:00:04]} 48. Kxc3 {[%clk 0:00:04]}  Kd5 {[%clk 0:00:05]} 49. Kb3 {[%clk 0:00:05]}  Kc6 {[%clk 0:00:05]} 50. Ka3 {[%clk 0:00:06]}  Kb6 {[%clk 0:00:06]} 51. Nf1 {[%clk 0:00:06]}  Kb5 {[%clk 0:00:07]} 52. Nd2 {[%clk 0:00:07]}  Kc5 {[%clk 0:00:06]} 53. Nb3+ {[%clk 0:00:07]}  Kb6 {[%clk 0:00:07]} 54. Ka4 {[%clk 0:00:07]}  Ka6 {[%clk 0:00:08]} 55. Nxa5 {[%clk 0:00:08]}  Kb6 {[%clk 0:00:09]} 56. Nb3 {[%clk 0:00:09]}  Ka7 {[%clk 0:00:09]} 57. Kb4 {[%clk 0:00:10]}  Kb7 {[%clk 0:00:10]} 58. a4 {[%clk 0:00:11]}  Kb6 {[%clk 0:00:10]} 59. a5+ {[%clk 0:00:11]}  Ka7 {[%clk 0:00:11]} 60. Nc5 {[%clk 0:00:12]}  Ka8 {[%clk 0:00:11]} 61. Kb5 {[%clk 0:00:12]}  Kb8 {[%clk 0:00:12]} 62. a6 {[%clk 0:00:13]}  Ka7 {[%clk 0:00:13]} 63. Na4 {[%clk 0:00:13]}  Ka8 {[%clk 0:00:13]} 64. Kb6 {[%clk 0:00:14]}  Kb8 {[%clk 0:00:14]} 65. Nc3 {[%clk 0:00:14]}  Ka8 {[%clk 0:00:15]} 66. Nb5 {[%clk 0:00:14]}  Kb8 {[%clk 0:00:16]} 67. a7+ {[%clk 0:00:14]}  Kc8 {[%clk 0:00:17]} 68. a8=Q+ {[%clk 0:00:14]}  Kd7 {[%clk 0:00:18]} 69. Qe4 {[%clk 0:00:13]} 1-0


[Site "https://www.chess.com"]

[Event "Titled Tuesday Blitz November 08 Late 2022"]
[White "Levine, David"]
[Black "Silva, Caio Henrique Angelico"]
[WhiteFideId "2011611"]
[BlackFideId "22777210"]
[WhiteElo "2190"]
[BlackElo "1990"]
[Result "1/2-1/2"]
[Round "08"]
[TimeControl "180+1"]
[Date "2022.11.09"]
[WhiteClock "0:00:03"]
[BlackClock "0:00:04"]

1. d4 {[%clk 0:03:00]}  Nf6 {[%clk 0:02:57]} 2. c4 {[%clk 0:03:00]}  g6 {[%clk 0:02:57]} 3. g3 {[%clk 0:03:00]}  Bg7 {[%clk 0:02:55]} 4. Bg2 {[%clk 0:03:00]}  O-O {[%clk 0:02:56]} 5. Nf3 {[%clk 0:03:00]}  d6 {[%clk 0:02:57]} 6. O-O {[%clk 0:03:00]}  Nbd7 {[%clk 0:02:56]} 7. Nc3 {[%clk 0:03:00]}  e5 {[%clk 0:02:56]} 8. e4 {[%clk 0:03:00]}  a6 {[%clk 0:02:47]} 9. h3 {[%clk 0:02:49]}  Rb8 {[%clk 0:02:44]} 10. a4 {[%clk 0:02:17]}  c6 {[%clk 0:02:35]} 11. d5 {[%clk 0:02:12]}  cxd5 {[%clk 0:02:34]} 12. cxd5 {[%clk 0:02:10]}  Nc5 {[%clk 0:02:31]} 13. Qc2 {[%clk 0:02:05]}  b5 {[%clk 0:02:22]} 14. axb5 {[%clk 0:02:02]}  axb5 {[%clk 0:02:23]} 15. b4 {[%clk 0:02:00]}  Ncd7 {[%clk 0:02:22]} 16. Qd3 {[%clk 0:01:57]}  h6 {[%clk 0:01:55]} 17. Be3 {[%clk 0:01:54]}  Qe7 {[%clk 0:01:36]} 18. Nxb5 {[%clk 0:01:41]}  Nxe4 {[%clk 0:01:32]} 19. Na7 {[%clk 0:01:39]}  f5 {[%clk 0:01:21]} 20. Nc6 {[%clk 0:01:38]}  Qe8 {[%clk 0:01:21]} 21. Nxb8 {[%clk 0:01:37]}  Nxb8 {[%clk 0:01:22]} 22. b5 {[%clk 0:01:06]}  Nd7 {[%clk 0:01:10]} 23. Qc4 {[%clk 0:00:56]}  Nec5 {[%clk 0:01:02]} 24. Bxc5 {[%clk 0:00:48]}  Nxc5 {[%clk 0:01:02]} 25. Ra7 {[%clk 0:00:45]}  Bd7 {[%clk 0:00:58]} 26. Rb1 {[%clk 0:00:44]}  Qb8 {[%clk 0:00:57]} 27. b6 {[%clk 0:00:41]}  f4 {[%clk 0:00:36]} 28. Nd2 {[%clk 0:00:31]}  fxg3 {[%clk 0:00:35]} 29. fxg3 {[%clk 0:00:30]}  Rc8 {[%clk 0:00:27]} 30. Ne4 {[%clk 0:00:27]}  Nxe4 {[%clk 0:00:26]} 31. Qxe4 {[%clk 0:00:26]}  Bf5 {[%clk 0:00:26]} 32. Qe1 {[%clk 0:00:25]}  Bxb1 {[%clk 0:00:25]} 33. Qxb1 {[%clk 0:00:25]}  e4 {[%clk 0:00:23]} 34. Bxe4 {[%clk 0:00:23]}  Bd4+ {[%clk 0:00:23]} 35. Kh2 {[%clk 0:00:23]}  Bxb6 {[%clk 0:00:21]} 36. Re7 {[%clk 0:00:14]}  Rc7 {[%clk 0:00:12]} 37. Rxc7 {[%clk 0:00:12]}  Qxc7 {[%clk 0:00:13]} 38. Bxg6 {[%clk 0:00:11]}  Qc5 {[%clk 0:00:11]} 39. Qc2 {[%clk 0:00:09]}  Qxd5 {[%clk 0:00:08]} 40. Be4 {[%clk 0:00:09]}  Qd4 {[%clk 0:00:07]} 41. Qg2 {[%clk 0:00:07]}  Kg7 {[%clk 0:00:06]} 42. h4 {[%clk 0:00:07]}  Qe5 {[%clk 0:00:06]} 43. Kh3 {[%clk 0:00:07]}  Bc7 {[%clk 0:00:06]} 44. Bd5 {[%clk 0:00:06]}  Bb6 {[%clk 0:00:06]} 45. Qf3 {[%clk 0:00:05]}  Bd4 {[%clk 0:00:02]} 46. Qg4+ {[%clk 0:00:05]}  Kf8 {[%clk 0:00:02]} 47. Qe6 {[%clk 0:00:04]}  Qxe6+ {[%clk 0:00:02]} 48. Bxe6 {[%clk 0:00:04]}  Ke7 {[%clk 0:00:03]} 49. Bd5 {[%clk 0:00:04]}  Kf6 {[%clk 0:00:04]} 50. g4 {[%clk 0:00:05]}  Be3 {[%clk 0:00:04]} 51. g5+ {[%clk 0:00:03]}  hxg5 {[%clk 0:00:04]} 52. hxg5+ {[%clk 0:00:03]}  Bxg5 {[%clk 0:00:04]} 53. Kg4 {[%clk 0:00:03]}  Bc1 {[%clk 0:00:04]} 54. Bc6 {[%clk 0:00:04]}  Ke5 {[%clk 0:00:04]} 55. Kf3 {[%clk 0:00:04]}  d5 {[%clk 0:00:04]} 56. Bxd5 {[%clk 0:00:03]} 1/2-1/2


[Site "https://www.chess.com"]

[Event "Titled Tuesday Blitz November 08 Late 2022"]
[White "Martic, Ivan"]
[Black "Mikhalsky, Vladimir"]
[WhiteFideId "929301"]
[BlackFideId "14144352"]
[WhiteElo "2355"]
[BlackElo "2271"]
[Result "0-1"]
[Round "08"]
[TimeControl "180+1"]
[Date "2022.11.09"]
[WhiteClock "0:00:01"]
[BlackClock "0:00:14"]

1. d4 {[%clk 0:03:00]}  Nf6 {[%clk 0:02:54]} 2. Nc3 {[%clk 0:02:58]}  d5 {[%clk 0:02:50]} 3. Bf4 {[%clk 0:02:57]}  g6 {[%clk 0:02:49]} 4. Nb5 {[%clk 0:02:56]}  Na6 {[%clk 0:02:48]} 5. e3 {[%clk 0:02:55]}  Bg7 {[%clk 0:02:48]} 6. Nf3 {[%clk 0:02:53]}  O-O {[%clk 0:02:47]} 7. Be2 {[%clk 0:02:52]}  c6 {[%clk 0:02:46]} 8. Nc3 {[%clk 0:02:51]}  c5 {[%clk 0:02:44]} 9. O-O {[%clk 0:02:48]}  Bf5 {[%clk 0:02:33]} 10. h3 {[%clk 0:02:47]}  Ne4 {[%clk 0:02:32]} 11. Be5 {[%clk 0:02:37]}  Nxc3 {[%clk 0:02:29]} 12. bxc3 {[%clk 0:02:38]}  c4 {[%clk 0:02:26]} 13. Rb1 {[%clk 0:02:29]}  b6 {[%clk 0:02:25]} 14. Bxg7 {[%clk 0:02:21]}  Kxg7 {[%clk 0:02:25]} 15. Nd2 {[%clk 0:02:22]}  Qd7 {[%clk 0:02:12]} 16. e4 {[%clk 0:02:20]}  Bxe4 {[%clk 0:02:03]} 17. Nxe4 {[%clk 0:02:20]}  dxe4 {[%clk 0:02:03]} 18. Bxc4 {[%clk 0:02:20]}  Qa4 {[%clk 0:01:58]} 19. Qe2 {[%clk 0:02:14]}  Nc7 {[%clk 0:01:55]} 20. Bb3 {[%clk 0:02:00]}  Qc6 {[%clk 0:01:54]} 21. Rbe1 {[%clk 0:01:53]}  Qxc3 {[%clk 0:01:47]} 22. Qxe4 {[%clk 0:01:53]}  e6 {[%clk 0:01:44]} 23. Re3 {[%clk 0:01:51]}  Qa5 {[%clk 0:01:25]} 24. c4 {[%clk 0:01:48]}  Rad8 {[%clk 0:01:22]} 25. Rd1 {[%clk 0:01:44]}  Ne8 {[%clk 0:01:22]} 26. d5 {[%clk 0:01:41]}  exd5 {[%clk 0:01:17]} 27. cxd5 {[%clk 0:01:41]}  Nf6 {[%clk 0:01:15]} 28. Qd4 {[%clk 0:01:37]}  Rd6 {[%clk 0:01:08]} 29. Rf3 {[%clk 0:01:31]}  Rc8 {[%clk 0:01:01]} 30. g4 {[%clk 0:01:29]}  Qc5 {[%clk 0:00:58]} 31. Qb2 {[%clk 0:01:24]}  h6 {[%clk 0:00:50]} 32. h4 {[%clk 0:01:22]}  g5 {[%clk 0:00:44]} 33. hxg5 {[%clk 0:01:21]}  hxg5 {[%clk 0:00:44]} 34. Rf5 {[%clk 0:01:19]}  Qc3 {[%clk 0:00:39]} 35. Rxg5+ {[%clk 0:01:10]}  Kh6 {[%clk 0:00:39]} 36. Qxc3 {[%clk 0:01:04]}  Rxc3 {[%clk 0:00:38]} 37. Rf5 {[%clk 0:01:00]}  Nxg4 {[%clk 0:00:37]} 38. Rxf7 {[%clk 0:00:53]}  Ne5 {[%clk 0:00:37]} 39. Rf5 {[%clk 0:00:47]}  Nf3+ {[%clk 0:00:35]} 40. Kf1 {[%clk 0:00:45]}  Nh2+ {[%clk 0:00:34]} 41. Ke2 {[%clk 0:00:44]}  Ng4 {[%clk 0:00:32]} 42. Rh1+ {[%clk 0:00:38]}  Kg6 {[%clk 0:00:31]} 43. Rf8 {[%clk 0:00:39]}  Kg7 {[%clk 0:00:31]} 44. Ra8 {[%clk 0:00:37]}  Rc7 {[%clk 0:00:30]} 45. Rg1 {[%clk 0:00:36]}  Rg6 {[%clk 0:00:28]} 46. Rd8 {[%clk 0:00:27]}  Re7+ {[%clk 0:00:28]} 47. Kd2 {[%clk 0:00:26]}  Nxf2 {[%clk 0:00:27]} 48. Rxg6+ {[%clk 0:00:24]}  Kxg6 {[%clk 0:00:28]} 49. d6 {[%clk 0:00:24]}  Rg7 {[%clk 0:00:26]} 50. d7 {[%clk 0:00:20]}  Ne4+ {[%clk 0:00:25]} 51. Ke3 {[%clk 0:00:20]}  Nc5 {[%clk 0:00:24]} 52. Bc2+ {[%clk 0:00:13]}  Kg5 {[%clk 0:00:22]} 53. Re8 {[%clk 0:00:05]}  Nxd7 {[%clk 0:00:21]} 54. Kd4 {[%clk 0:00:03]}  Nc5 {[%clk 0:00:21]} 55. Ra8 {[%clk 0:00:02]}  Kf4 {[%clk 0:00:21]} 56. Rf8+ {[%clk 0:00:01]}  Kg5 {[%clk 0:00:21]} 57. Rb8 {[%clk 0:00:02]}  Rd7+ {[%clk 0:00:20]} 58. Ke5 {[%clk 0:00:02]}  Rd2 {[%clk 0:00:20]} 59. Rg8+ {[%clk 0:00:02]}  Kh6 {[%clk 0:00:19]} 60. Bf5 {[%clk 0:00:02]}  Rxa2 {[%clk 0:00:16]} 61. Kf6 {[%clk 0:00:02]}  Nd7+ {[%clk 0:00:13]} 62. Bxd7 {[%clk 0:00:01]}  Kh7 {[%clk 0:00:14]} 0-1


[Site "https://www.chess.com"]

[Event "Titled Tuesday Blitz November 08 Late 2022"]
[White "Melkumyan, Hrant"]
[Black "Kamsky, Gata"]
[WhiteFideId "13302485"]
[BlackFideId "2000024"]
[WhiteElo "2604"]
[BlackElo "2666"]
[Result "1-0"]
[Round "08"]
[TimeControl "180+1"]
[Date "2022.11.08"]
[WhiteClock "0:00:03"]
[BlackClock "0:00:01"]

1. d4 {[%clk 0:03:00]}  Nf6 {[%clk 0:02:53]} 2. c4 {[%clk 0:03:00]}  e6 {[%clk 0:02:53]} 3. Bf4 {[%clk 0:03:01]}  d5 {[%clk 0:02:43]} 4. e3 {[%clk 0:03:01]}  Bb4+ {[%clk 0:02:40]} 5. Nd2 {[%clk 0:03:01]}  c5 {[%clk 0:02:35]} 6. dxc5 {[%clk 0:03:01]}  Nc6 {[%clk 0:02:28]} 7. Nf3 {[%clk 0:03:00]}  Bxc5 {[%clk 0:02:16]} 8. Bd3 {[%clk 0:02:57]}  dxc4 {[%clk 0:02:09]} 9. Nxc4 {[%clk 0:02:56]}  Bb4+ {[%clk 0:02:09]} 10. Ke2 {[%clk 0:02:52]}  O-O {[%clk 0:02:07]} 11. Qb3 {[%clk 0:02:46]}  Qe7 {[%clk 0:01:17]} 12. Rhd1 {[%clk 0:02:32]}  b5 {[%clk 0:01:12]} 13. Nce5 {[%clk 0:02:20]}  Na5 {[%clk 0:01:12]} 14. Qc2 {[%clk 0:02:17]}  Bb7 {[%clk 0:01:11]} 15. Rac1 {[%clk 0:02:11]}  Rac8 {[%clk 0:01:09]} 16. Qb1 {[%clk 0:02:11]}  a6 {[%clk 0:01:07]} 17. Rxc8 {[%clk 0:01:56]}  Rxc8 {[%clk 0:01:07]} 18. Bg5 {[%clk 0:01:57]}  h6 {[%clk 0:01:01]} 19. Bh4 {[%clk 0:01:52]}  Nc4 {[%clk 0:00:58]} 20. Bxc4 {[%clk 0:01:36]}  bxc4 {[%clk 0:00:57]} 21. Rd7 {[%clk 0:01:31]}  Qxd7 {[%clk 0:00:37]} 22. Nxd7 {[%clk 0:01:30]}  Nxd7 {[%clk 0:00:38]} 23. Qd1 {[%clk 0:01:16]}  Nc5 {[%clk 0:00:37]} 24. a3 {[%clk 0:00:53]}  Ba5 {[%clk 0:00:35]} 25. Qd4 {[%clk 0:00:41]}  Bd5 {[%clk 0:00:34]} 26. Kf1 {[%clk 0:00:34]}  Ne4 {[%clk 0:00:29]} 27. h3 {[%clk 0:00:26]}  c3 {[%clk 0:00:29]} 28. bxc3 {[%clk 0:00:26]}  Rxc3 {[%clk 0:00:29]} 29. Kg1 {[%clk 0:00:24]}  Rc1+ {[%clk 0:00:25]} 30. Kh2 {[%clk 0:00:24]}  Bc7+ {[%clk 0:00:24]} 31. Bg3 {[%clk 0:00:21]}  Bxg3+ {[%clk 0:00:21]} 32. fxg3 {[%clk 0:00:22]}  Nf2 {[%clk 0:00:21]} 33. Ng1 {[%clk 0:00:17]}  Rc2 {[%clk 0:00:19]} 34. Qb6 {[%clk 0:00:13]}  f5 {[%clk 0:00:15]} 35. g4 {[%clk 0:00:11]}  fxg4 {[%clk 0:00:14]} 36. Qxa6 {[%clk 0:00:10]}  Nd1 {[%clk 0:00:12]} 37. Ne2 {[%clk 0:00:08]}  Nxe3 {[%clk 0:00:10]} 38. Qd3 {[%clk 0:00:07]}  g3+ {[%clk 0:00:07]} 39. Kxg3 {[%clk 0:00:05]}  Nf5+ {[%clk 0:00:07]} 40. Kh2 {[%clk 0:00:05]}  Ra2 {[%clk 0:00:06]} 41. Nf4 {[%clk 0:00:06]}  Bxg2 {[%clk 0:00:01]} 42. Nxg2 {[%clk 0:00:06]}  Nh4 {[%clk 0:00:01]} 43. Qd8+ {[%clk 0:00:03]} 1-0


[Site "https://www.chess.com"]

[Event "Titled Tuesday Blitz November 08 Late 2022"]
[White "Moskvin, Anatoly"]
[Black "Brodowski, Piotr"]
[WhiteFideId "24199990"]
[BlackFideId "1124480"]
[WhiteElo "2079"]
[BlackElo "2351"]
[Result "1/2-1/2"]
[Round "08"]
[TimeControl "180+1"]
[Date "2022.11.09"]
[WhiteClock "0:00:05"]
[BlackClock "0:00:03"]

1. e4 {[%clk 0:03:00]}  g6 {[%clk 0:02:58]} 2. d4 {[%clk 0:03:00]}  Bg7 {[%clk 0:02:58]} 3. Nc3 {[%clk 0:03:00]}  d6 {[%clk 0:02:58]} 4. Be3 {[%clk 0:03:00]}  a6 {[%clk 0:02:58]} 5. Qd2 {[%clk 0:03:00]}  b5 {[%clk 0:02:58]} 6. f3 {[%clk 0:03:01]}  Bb7 {[%clk 0:02:58]} 7. O-O-O {[%clk 0:02:59]}  Nd7 {[%clk 0:02:57]} 8. h4 {[%clk 0:02:57]}  h6 {[%clk 0:02:56]} 9. Nh3 {[%clk 0:02:45]}  Nb6 {[%clk 0:02:55]} 10. Nf4 {[%clk 0:02:43]}  e6 {[%clk 0:02:38]} 11. Kb1 {[%clk 0:02:35]}  Ne7 {[%clk 0:02:37]} 12. g4 {[%clk 0:02:23]}  b4 {[%clk 0:02:30]} 13. Nce2 {[%clk 0:02:16]}  Nc4 {[%clk 0:02:30]} 14. Qc1 {[%clk 0:02:17]}  Nxe3 {[%clk 0:02:30]} 15. Qxe3 {[%clk 0:02:18]}  Nc6 {[%clk 0:02:30]} 16. d5 {[%clk 0:01:47]}  exd5 {[%clk 0:02:24]} 17. exd5+ {[%clk 0:01:36]}  Qe7 {[%clk 0:02:06]} 18. Qxe7+ {[%clk 0:01:13]}  Nxe7 {[%clk 0:02:06]} 19. Ng3 {[%clk 0:01:14]}  Kd7 {[%clk 0:02:01]} 20. Bc4 {[%clk 0:01:08]}  Rae8 {[%clk 0:01:50]} 21. Ne4 {[%clk 0:00:55]}  Nc8 {[%clk 0:01:45]} 22. g5 {[%clk 0:00:38]}  Nb6 {[%clk 0:01:43]} 23. Bb3 {[%clk 0:00:31]}  hxg5 {[%clk 0:01:36]} 24. hxg5 {[%clk 0:00:32]}  a5 {[%clk 0:01:04]} 25. a3 {[%clk 0:00:32]}  bxa3 {[%clk 0:00:57]} 26. bxa3 {[%clk 0:00:33]}  a4 {[%clk 0:00:57]} 27. Ba2 {[%clk 0:00:33]}  Ba6 {[%clk 0:00:52]} 28. Nf6+ {[%clk 0:00:18]}  Bxf6 {[%clk 0:00:50]} 29. gxf6 {[%clk 0:00:18]}  Bc4 {[%clk 0:00:38]} 30. Rxh8 {[%clk 0:00:05]}  Rxh8 {[%clk 0:00:38]} 31. Bxc4 {[%clk 0:00:06]}  Nxc4 {[%clk 0:00:37]} 32. Rd4 {[%clk 0:00:07]}  Nxa3+ {[%clk 0:00:20]} 33. Kb2 {[%clk 0:00:07]}  Nb5 {[%clk 0:00:20]} 34. Rxa4 {[%clk 0:00:07]}  Rh4 {[%clk 0:00:18]} 35. Re4 {[%clk 0:00:07]}  g5 {[%clk 0:00:08]} 36. Re7+ {[%clk 0:00:07]}  Kd8 {[%clk 0:00:08]} 37. Nd3 {[%clk 0:00:05]}  Rh3 {[%clk 0:00:08]} 38. Nb4 {[%clk 0:00:04]}  Rxf3 {[%clk 0:00:06]} 39. Nc6+ {[%clk 0:00:05]}  Kc8 {[%clk 0:00:06]} 40. Rxf7 {[%clk 0:00:05]}  g4 {[%clk 0:00:05]} 41. Rf8+ {[%clk 0:00:03]}  Kb7 {[%clk 0:00:05]} 42. Rb8+ {[%clk 0:00:04]}  Ka6 {[%clk 0:00:04]} 43. Rg8 {[%clk 0:00:04]}  Rxf6 {[%clk 0:00:04]} 44. Rxg4 {[%clk 0:00:04]}  Kb6 {[%clk 0:00:04]} 45. c4 {[%clk 0:00:04]}  Na7 {[%clk 0:00:02]} 46. Nd4 {[%clk 0:00:04]}  Kc5 {[%clk 0:00:03]} 47. Nb3+ {[%clk 0:00:04]}  Kb6 {[%clk 0:00:03]} 48. Ka3 {[%clk 0:00:05]}  Rf2 {[%clk 0:00:03]} 49. Kb4 {[%clk 0:00:05]}  Kb7 {[%clk 0:00:04]} 50. Rg7 {[%clk 0:00:05]}  Nc8 {[%clk 0:00:04]} 51. c5 {[%clk 0:00:05]}  dxc5+ {[%clk 0:00:03]} 52. Nxc5+ {[%clk 0:00:06]}  Kb6 {[%clk 0:00:02]} 53. Na4+ {[%clk 0:00:06]}  Kb7 {[%clk 0:00:03]} 54. Nc5+ {[%clk 0:00:07]}  Kb6 {[%clk 0:00:03]} 55. Na4+ {[%clk 0:00:04]}  Kb7 {[%clk 0:00:03]} 56. Nc5+ {[%clk 0:00:05]} 1/2-1/2


[Site "https://www.chess.com"]

[Event "Titled Tuesday Blitz November 08 Late 2022"]
[White "Muhammad, Shahzeb"]
[Black "Floresvillar Gonzalez, Luis Migu"]
[WhiteFideId "7804806"]
[BlackFideId "5100542"]
[WhiteElo "2367"]
[BlackElo "2040"]
[Result "1-0"]
[Round "08"]
[TimeControl "180+1"]
[Date "2022.11.09"]
[WhiteClock "0:01:16"]
[BlackClock "0:00:20"]

1. e4 {[%clk 0:03:00]}  e6 {[%clk 0:02:59]} 2. d4 {[%clk 0:02:58]}  d5 {[%clk 0:02:59]} 3. Nd2 {[%clk 0:02:59]}  dxe4 {[%clk 0:02:58]} 4. Nxe4 {[%clk 0:03:00]}  Nd7 {[%clk 0:02:58]} 5. Nf3 {[%clk 0:03:00]}  Ngf6 {[%clk 0:02:58]} 6. Bd3 {[%clk 0:03:01]}  Nxe4 {[%clk 0:02:57]} 7. Bxe4 {[%clk 0:03:02]}  c5 {[%clk 0:02:57]} 8. O-O {[%clk 0:02:59]}  cxd4 {[%clk 0:02:56]} 9. Qe2 {[%clk 0:02:58]}  Be7 {[%clk 0:02:51]} 10. Nxd4 {[%clk 0:02:56]}  O-O {[%clk 0:02:49]} 11. Rd1 {[%clk 0:02:54]}  Qc7 {[%clk 0:02:44]} 12. Nb5 {[%clk 0:02:53]}  Qb6 {[%clk 0:02:31]} 13. Be3 {[%clk 0:02:31]}  Bc5 {[%clk 0:02:30]} 14. Rd6 {[%clk 0:02:17]}  Bxe3 {[%clk 0:02:19]} 15. Rxb6 {[%clk 0:02:15]}  Bxb6 {[%clk 0:02:20]} 16. Rd1 {[%clk 0:02:11]}  Nf6 {[%clk 0:02:19]} 17. Bd3 {[%clk 0:02:10]}  a6 {[%clk 0:02:17]} 18. Nc3 {[%clk 0:02:09]}  Re8 {[%clk 0:02:10]} 19. g4 {[%clk 0:02:08]}  h6 {[%clk 0:02:08]} 20. h4 {[%clk 0:02:07]}  e5 {[%clk 0:02:08]} 21. g5 {[%clk 0:02:05]}  hxg5 {[%clk 0:02:06]} 22. hxg5 {[%clk 0:02:05]}  Ng4 {[%clk 0:02:03]} 23. Rf1 {[%clk 0:01:47]}  Bd7 {[%clk 0:01:58]} 24. Qe4 {[%clk 0:01:39]}  g6 {[%clk 0:01:51]} 25. Qxb7 {[%clk 0:01:37]}  e4 {[%clk 0:01:17]} 26. Qxd7 {[%clk 0:01:31]}  exd3 {[%clk 0:01:14]} 27. Qxg4 {[%clk 0:01:30]}  dxc2 {[%clk 0:01:12]} 28. Ne4 {[%clk 0:01:23]}  Bd4 {[%clk 0:01:08]} 29. Nd6 {[%clk 0:01:20]}  Bxb2 {[%clk 0:00:53]} 30. Qc4 {[%clk 0:01:18]}  c1=Q {[%clk 0:00:38]} 31. Rxc1 {[%clk 0:01:17]}  Bxc1 {[%clk 0:00:38]} 32. Qxf7+ {[%clk 0:01:16]}  Kh8 {[%clk 0:00:36]} 33. Nxe8 {[%clk 0:01:16]}  Bb2 {[%clk 0:00:25]} 34. Nf6 {[%clk 0:01:15]}  Bxf6 {[%clk 0:00:22]} 35. gxf6 {[%clk 0:01:16]}  a5 {[%clk 0:00:20]} 36. Qg7# {[%clk 0:01:16]} 1-0


[Site "https://www.chess.com"]

[Event "Titled Tuesday Blitz November 08 Late 2022"]
[White "Papayan, Oleg"]
[Black "De Souza, Cristiano Gomes"]
[WhiteFideId "4193911"]
[BlackFideId "2151758"]
[WhiteElo "2153"]
[BlackElo "2068"]
[Result "1-0"]
[Round "08"]
[TimeControl "180+1"]
[Date "2022.11.09"]
[WhiteClock "0:00:07"]
[BlackClock "0:00:37"]

1. e4 {[%clk 0:03:00]}  c5 {[%clk 0:02:55]} 2. Nf3 {[%clk 0:02:58]}  d6 {[%clk 0:02:50]} 3. d4 {[%clk 0:02:58]}  cxd4 {[%clk 0:02:50]} 4. Nxd4 {[%clk 0:02:58]}  Nf6 {[%clk 0:02:50]} 5. Nc3 {[%clk 0:02:59]}  a6 {[%clk 0:02:50]} 6. h3 {[%clk 0:02:59]}  g6 {[%clk 0:02:49]} 7. g4 {[%clk 0:02:58]}  Bg7 {[%clk 0:02:49]} 8. Bg2 {[%clk 0:02:56]}  O-O {[%clk 0:02:48]} 9. Be3 {[%clk 0:02:52]}  Nc6 {[%clk 0:02:48]} 10. Nxc6 {[%clk 0:02:46]}  bxc6 {[%clk 0:02:48]} 11. e5 {[%clk 0:02:47]}  dxe5 {[%clk 0:02:46]} 12. Bxc6 {[%clk 0:02:38]}  Rb8 {[%clk 0:02:44]} 13. Qxd8 {[%clk 0:02:12]}  Rxd8 {[%clk 0:02:41]} 14. Rd1 {[%clk 0:01:55]}  Rxd1+ {[%clk 0:02:36]} 15. Nxd1 {[%clk 0:01:56]}  Be6 {[%clk 0:02:31]} 16. Ba4 {[%clk 0:01:39]}  Nd5 {[%clk 0:02:27]} 17. Bb3 {[%clk 0:01:31]}  Nxe3 {[%clk 0:02:23]} 18. Nxe3 {[%clk 0:01:21]}  Bd7 {[%clk 0:02:14]} 19. Ke2 {[%clk 0:01:13]}  a5 {[%clk 0:02:10]} 20. Rd1 {[%clk 0:01:10]}  Be8 {[%clk 0:02:07]} 21. a4 {[%clk 0:01:00]}  e4 {[%clk 0:01:59]} 22. Nc4 {[%clk 0:01:00]}  Kf8 {[%clk 0:01:45]} 23. Rd5 {[%clk 0:00:57]}  Bc6 {[%clk 0:01:15]} 24. Rxa5 {[%clk 0:00:52]}  Bd7 {[%clk 0:01:09]} 25. Ke3 {[%clk 0:00:24]}  Be6 {[%clk 0:01:05]} 26. Kxe4 {[%clk 0:00:21]}  f5+ {[%clk 0:01:01]} 27. gxf5 {[%clk 0:00:15]}  Bxf5+ {[%clk 0:01:00]} 28. Rxf5+ {[%clk 0:00:16]}  gxf5+ {[%clk 0:00:59]} 29. Kxf5 {[%clk 0:00:17]}  Bf6 {[%clk 0:00:56]} 30. a5 {[%clk 0:00:15]}  Rb5+ {[%clk 0:00:52]} 31. Ke6 {[%clk 0:00:16]}  Rh5 {[%clk 0:00:47]} 32. c3 {[%clk 0:00:07]}  Rxh3 {[%clk 0:00:42]} 33. a6 {[%clk 0:00:07]}  Rh1 {[%clk 0:00:41]} 34. a7 {[%clk 0:00:07]}  Ra1 {[%clk 0:00:40]} 35. Na3 {[%clk 0:00:07]}  Bxc3 {[%clk 0:00:38]} 36. a8=Q+ {[%clk 0:00:06]}  Kg7 {[%clk 0:00:37]} 37. bxc3 {[%clk 0:00:07]} 1-0


[Site "https://www.chess.com"]